fUSD/lending_fUSD_20250223
["ID","MTS","AMOUNT","RATE_DAILY","PERIOD"]
[354195993,1740343857450,-411.41237288,0.0001652,2]
[354195994,1740343857459,-500.0,0.0001652,2]
[354195995,1740343857467,-500.0,0.0001652,2]
[354195996,1740343857476,-500.0,0.0001652,2]
[354195997,1740343857485,-500.0,0.0001652,2]
[354195998,1740343857494,-886.8,0.0001652,2]
[354195999,1740343857503,-500.0,0.0001652,2]
[354196000,1740343857512,-500.0,0.0001652,2]
[354196001,1740343857521,-1826.05,0.0001652,2]
[354196002,1740343857530,-500.0,0.0001652,2]
[354196003,1740343857539,-896.85,0.0001652,2]
[354196004,1740343857548,-500.0,0.0001652,2]
[354196005,1740343857557,-500.0,0.0001652,2]
[354196006,1740343857566,-500.0,0.0001652,2]
[354196007,1740343857577,-1403.58,0.0001652,2]
[354196008,1740343857586,-500.0,0.0001652,2]
[354196009,1740343857595,-500.0,0.0001652,2]
[354196010,1740343857605,-500.0,0.0001652,2]
[354196011,1740343857614,-500.0,0.0001652,2]
[354196012,1740343857623,-500.0,0.0001652,2]
[354196013,1740343857632,-500.0,0.0001652,2]
[354196014,1740343857642,-500.0,0.0001652,2]
[354196015,1740343857651,-500.0,0.0001652,2]
[354196016,1740343857660,-727.43,0.0001652,2]
[354196017,1740343857669,-500.0,0.0001652,2]
[354196018,1740343857677,-500.0,0.0001652,2]
[354196019,1740343857687,-500.0,0.0001652,2]
[354196020,1740343857695,-500.0,0.0001652,2]
[354196021,1740343857705,-500.0,0.0001652,2]
[354196022,1740343857714,-500.0,0.0001652,2]
[354196023,1740343857723,-523.32,0.0001652,2]
[354196024,1740343857732,-500.0,0.0001652,2]
[354196025,1740343857741,-500.0,0.0001652,2]
[354196026,1740343857750,-995.82,0.0001652,2]
[354196027,1740343857759,-500.0,0.0001652,2]
[354196028,1740343857768,-1091.27,0.0001652,2]
[354196029,1740343857777,-814.38,0.0001652,2]
[354196030,1740343857786,-500.0,0.0001652,2]
[354196031,1740343857795,-500.0,0.0001652,2]
[354196032,1740343857804,-500.0,0.0001652,2]
[354196033,1740343857813,-1554.59,0.0001652,2]
[354196034,1740343857822,-696.94,0.0001652,2]
[354196035,1740343857831,-500.0,0.0001652,2]
[354196036,1740343857840,-1823.45,0.0001652,2]
[354196037,1740343857849,-500.0,0.0001652,2]
[354196038,1740343857858,-500.0,0.0001652,2]
[354196039,1740343857867,-1229.63,0.0001652,2]
[354196040,1740343857876,-500.0,0.0001652,2]
[354196041,1740343857885,-1001.54,0.0001652,2]
[354196042,1740343857894,-1274.82,0.0001652,2]
[354196043,1740343857902,-500.0,0.0001652,2]
[354196044,1740343857911,-500.0,0.0001652,2]
[354196045,1740343857920,-500.0,0.0001652,2]
[354196046,1740343857929,-500.0,0.0001652,2]
[354196047,1740343857938,-500.0,0.0001652,2]
[354196048,1740343857947,-500.0,0.0001652,2]
[354196049,1740343857955,-500.0,0.0001652,2]
[354196050,1740343857964,-500.0,0.0001652,2]
[354196051,1740343857973,-500.0,0.0001652,2]
[354196052,1740343857982,-500.0,0.0001652,2]
[354196053,1740343857991,-500.0,0.0001652,2]
[354196054,1740343857999,-500.0,0.0001652,2]
[354196055,1740343858008,-500.0,0.0001652,2]
[354196056,1740343858018,-500.0,0.0001652,2]
[354196057,1740343858026,-500.0,0.0001652,2]
[354196058,1740343858035,-500.0,0.0001652,2]
[354196059,1740343858044,-500.0,0.0001652,2]
[354196060,1740343858053,-701.23,0.0001652,2]
[354196061,1740343858062,-500.0,0.0001652,2]
[354196062,1740343858071,-500.0,0.0001652,2]
[354196063,1740343858080,-1427.53,0.0001652,2]
[354196064,1740343858089,-500.0,0.0001652,2]
[354196065,1740343858098,-500.0,0.0001652,2]
[354196066,1740343858107,-500.0,0.0001652,2]
[354196067,1740343858117,-500.0,0.0001652,2]
[354196068,1740343858126,-500.0,0.0001652,2]
[354196069,1740343858135,-1749.18,0.0001652,2]
[354196070,1740343858144,-500.0,0.0001652,2]
[354196071,1740343858154,-500.0,0.0001652,2]
[354196072,1740343858163,-500.0,0.0001652,2]
[354196073,1740343858172,-500.0,0.0001652,2]
[354196074,1740343858181,-500.0,0.0001652,2]
[354196075,1740343858190,-1912.14,0.0001652,2]
[354196076,1740343858200,-1726.23,0.0001652,2]
[354196077,1740343858209,-500.0,0.0001652,2]
[354196078,1740343858219,-600.71,0.0001652,2]
[354196079,1740343858228,-500.0,0.0001652,2]
[354196080,1740343858237,-500.0,0.0001652,2]
[354196081,1740343858246,-500.0,0.0001652,2]
[354196082,1740343858255,-500.0,0.0001652,2]
[354196083,1740343858264,-500.0,0.0001652,2]
[354196084,1740343858274,-500.0,0.0001652,2]
[354196085,1740343858283,-500.0,0.0001652,2]
[354196086,1740343858292,-1061.17,0.0001652,2]
[354196087,1740343858302,-500.0,0.0001652,2]
[354196088,1740343858311,-500.0,0.0001652,2]
[354196089,1740343858320,-500.0,0.0001652,2]
[354196090,1740343858330,-500.0,0.0001652,2]
[354196091,1740343858338,-500.0,0.0001652,2]
[354196092,1740343858348,-500.0,0.0001652,2]
[354196093,1740343858357,-500.0,0.0001652,2]
[354196094,1740343858366,-500.0,0.0001652,2]
[354196095,1740343858375,-500.0,0.0001652,2]
[354196096,1740343858384,-500.0,0.0001652,2]
[354196097,1740343858393,-500.0,0.0001652,2]
[354196098,1740343858402,-500.0,0.0001652,2]
[354196099,1740343858410,-500.0,0.0001652,2]
[354196100,1740343858419,-500.0,0.0001652,2]
[354196101,1740343858428,-500.0,0.0001652,2]
[354196102,1740343858437,-500.0,0.0001652,2]
[354196103,1740343858445,-500.0,0.0001652,2]
[354196104,1740343858454,-500.0,0.0001652,2]
[354196105,1740343858463,-500.0,0.0001652,2]
[354196106,1740343858472,-631.09,0.0001652,2]
[354196107,1740343858481,-500.0,0.0001652,2]
[354196108,1740343858489,-500.0,0.0001652,2]
[354196109,1740343858499,-500.0,0.0001652,2]
[354196110,1740343858507,-500.0,0.0001652,2]
[354196111,1740343858517,-730.09,0.0001652,2]
[354196112,1740343858526,-500.0,0.0001652,2]
[354196113,1740343858535,-513.0,0.0001652,2]
[354196114,1740343858544,-500.0,0.0001652,2]
[354196115,1740343858553,-563.09,0.0001652,2]
[354196116,1740343858562,-500.0,0.0001652,2]
[354196117,1740343858571,-500.0,0.0001652,2]
[354196118,1740343858579,-500.0,0.0001652,2]
[354196119,1740343858588,-500.0,0.0001652,2]
[354196120,1740343858597,-525.0,0.0001652,2]
[354196121,1740343858606,-1187.71,0.0001652,2]
[354196122,1740343858615,-500.0,0.0001652,2]
[354196123,1740343858623,-500.0,0.0001652,2]
[354196124,1740343858632,-1022.83,0.0001652,2]
[354196125,1740343858641,-500.0,0.0001652,2]
[354196126,1740343858650,-500.0,0.0001652,2]
[354196127,1740343858659,-629.6,0.0001652,2]
[354196128,1740343858668,-500.0,0.0001652,2]
[354196129,1740343858676,-868.64,0.0001652,2]
[354196130,1740343858685,-615.17,0.0001652,2]
[354196131,1740343858694,-963.75,0.0001652,2]
[354196132,1740343858703,-500.0,0.0001652,2]
[354196133,1740343858712,-1082.2,0.0001652,2]
[354196134,1740343858721,-500.0,0.0001652,2]
[354196135,1740343858730,-1613.22,0.0001652,2]
[354196136,1740343858739,-1127.04,0.0001652,2]
[354196137,1740343858749,-810.6,0.0001652,2]
[354196138,1740343858758,-508.88994198,0.0001652,2]
[354196139,1740343858767,-500.0,0.0001652,2]
[354196140,1740343858775,-500.0,0.0001652,2]
[354196141,1740343858784,-500.0,0.0001652,2]
[354196142,1740343858793,-500.0,0.0001652,2]
[354196143,1740343858802,-958.69,0.0001652,2]
[354196144,1740343858811,-500.0,0.0001652,2]
[354196145,1740343858820,-1069.92,0.0001652,2]
[354196146,1740343858981,-2569.895436,0.0001652,2]
[354196147,1740343859005,-500.0,0.0001652,2]
[354196148,1740343859015,-2569.895436,0.0001652,2]
[354196149,1740343859023,-2569.895436,0.0001652,2]
[354196150,1740343859032,-1260.78,0.0001652,2]
[354196151,1740343859041,-500.0,0.0001652,2]
[354196152,1740343859050,-1176.44,0.0001652,2]
[354196153,1740343859059,-500.0,0.0001652,2]
[354196154,1740343859068,-500.0,0.0001652,2]
[354196155,1740343859077,-2569.895436,0.0001652,2]
[354196156,1740343859086,-2569.895436,0.0001652,2]
[354196157,1740343859095,-1014.83,0.0001652,2]
[354196158,1740343859104,-2569.895436,0.0001652,2]
[354196159,1740343859113,-820.0,0.0001652,2]
[354196160,1740343859122,-500.0,0.0001652,2]
[354196161,1740343859131,-500.0,0.0001652,2]
[354196162,1740343859141,-815.12,0.0001652,2]
[354196163,1740343859150,-500.0,0.0001652,2]
[354196164,1740343859159,-753.74,0.0001652,2]
[354196165,1740343859168,-500.0,0.0001652,2]
[354196166,1740343859177,-500.0,0.0001652,2]
[354196167,1740343859186,-1067.18,0.0001652,2]
[354196168,1740343859195,-500.0,0.0001652,2]
[354196169,1740343859204,-500.0,0.0001652,2]
[354196170,1740343859213,-815.12,0.0001652,2]
[354196171,1740343859222,-500.0,0.0001652,2]
[354196172,1740343859231,-513.73,0.0001652,2]
[354196173,1740343859240,-1298.4,0.0001652,2]
[354196174,1740343859249,-500.0,0.0001652,2]
[354196175,1740343859258,-697.98,0.0001652,2]
[354196176,1740343859267,-1529.58,0.0001652,2]
[354196177,1740343859276,-500.0,0.0001652,2]
[354196178,1740343859285,-1005.51,0.0001652,2]
[354196179,1740343859294,-862.29,0.0001652,2]
[354196180,1740343859302,-500.0,0.0001652,2]
[354196181,1740343859311,-500.0,0.0001652,2]
[354196182,1740343859320,-500.0,0.0001652,2]
[354196183,1740343859329,-1073.46,0.0001652,2]
[354196184,1740343859338,-500.0,0.0001652,2]
[354196185,1740343859347,-500.0,0.0001652,2]
[354196186,1740343859356,-500.0,0.0001652,2]
[354196187,1740343859365,-911.28,0.0001652,2]
[354196188,1740343859374,-541.98,0.0001652,2]
[354196189,1740343859383,-500.0,0.0001652,2]
[354196190,1740343859392,-500.0,0.0001652,2]
[354196191,1740343859401,-151.0,0.0001652,2]
[354196192,1740343859410,-151.0,0.0001652,2]
[354196193,1740343859419,-1163.35,0.0001652,2]
[354196194,1740343859428,-151.0,0.0001652,2]
[354196195,1740343859439,-1240.84,0.0001652,2]
[354196196,1740343859450,-1110.9,0.0001652,2]
[354196197,1740343859459,-792.09,0.0001652,2]
[354196198,1740343859468,-836.05,0.0001652,2]
[354196199,1740343859477,-558.35,0.0001652,2]
[354196200,1740343859488,-500.0,0.0001652,2]
[354196201,1740343859497,-500.0,0.0001652,2]
[354196202,1740343859506,-796.9,0.0001652,2]
[354196203,1740343859516,-1211.01,0.0001652,2]
[354196204,1740343859525,-1698.45,0.0001652,2]
[354196205,1740343859535,-500.0,0.0001652,2]
[354196206,1740343859544,-500.0,0.0001652,2]
[354196207,1740343859552,-500.0,0.0001652,2]
[354196208,1740343859561,-2093.8,0.0001652,2]
[354196209,1740343859570,-1888.85,0.0001652,2]
[354196210,1740343859579,-753.2,0.0001652,2]
[354196211,1740343859588,-500.0,0.0001652,2]
[354196212,1740343859597,-500.0,0.0001652,2]
[354196213,1740343859606,-1825.5,0.0001652,2]
[354196214,1740343859615,-500.0,0.0001652,2]
[354196215,1740343859624,-1011.61,0.0001652,2]
[354196216,1740343859633,-500.0,0.0001652,2]
[354196217,1740343859642,-500.0,0.0001652,2]
[354196218,1740343859651,-500.0,0.0001652,2]
[354196219,1740343859660,-936.03,0.0001652,2]
[354196220,1740343859669,-1738.7,0.0001652,2]
[354196221,1740343859678,-500.0,0.0001652,2]
[354196222,1740343859687,-604.16,0.0001652,2]
[354196223,1740343859696,-659.13,0.0001652,2]
[354196224,1740343859705,-500.0,0.0001652,2]
[354196225,1740343859715,-673.31,0.0001652,2]
[354196226,1740343859724,-1269.57,0.0001652,2]
[354196227,1740343859733,-774.74,0.0001652,2]
[354196228,1740343859743,-276.21002137,0.0001652,2]
[354196229,1740343859752,-600.0446016,0.0001652,2]
[354196230,1740343859761,-1281.61,0.0001652,2]
[354196231,1740343859770,-500.0,0.0001652,2]
[354196232,1740343859779,-1269.93,0.0001652,2]
[354196233,1740343859788,-656.85,0.0001652,2]
[354196234,1740343859797,-500.0,0.0001652,2]
[354196235,1740343859806,-826.87,0.0001652,2]
[354196236,1740343859815,-1134.5,0.0001652,2]
[354196237,1740343859824,-1559.34,0.0001652,2]
[354196238,1740343859832,-500.0,0.0001652,2]
[354196239,1740343859841,-1277.43,0.0001652,2]
[354196240,1740343859851,-392.59170023,0.0001652,2]
[354196241,1740343859859,-688.18,0.0001652,2]
[354196242,1740343859868,-500.0,0.0001652,2]
[354196243,1740343859877,-781.73,0.0001652,2]
[354196244,1740343859886,-500.0,0.0001652,2]
[354196245,1740343859895,-874.61,0.0001652,2]
[354196246,1740343859905,-500.0,0.0001652,2]
[354196247,1740343859914,-604.16,0.0001652,2]
[354196248,1740343859923,-500.0,0.0001652,2]
[354196249,1740343859932,-500.0,0.0001652,2]
[354196250,1740343859941,-1132.83,0.0001652,2]
[354196251,1740343859951,-216.50770705,0.0001652,2]
[354196252,1740343859960,-500.0,0.0001652,2]
[354196253,1740343859969,-500.0,0.0001652,2]
[354196254,1740343859978,-1985.04,0.0001652,2]
[354196255,1740343859988,-500.0,0.0001652,2]
[354196256,1740343859997,-500.0,0.0001652,2]
[354196257,1740343860006,-538.46,0.0001652,2]
[354196258,1740343860015,-500.0,0.0001652,2]
[354196259,1740343860024,-1419.61,0.0001652,2]
[354196260,1740343860034,-500.0,0.0001652,2]
[354196261,1740343860044,-500.0,0.0001652,2]
[354196262,1740343860053,-684.0,0.0001652,2]
[354196263,1740343860063,-500.0,0.0001652,2]
[354196264,1740343860073,-239.541183,0.0001652,2]
[354196265,1740343860083,-500.0,0.0001652,2]
[354196266,1740343860092,-500.0,0.0001652,2]
[354196267,1740343860101,-500.0,0.0001652,2]
[354196268,1740343860110,-500.0,0.0001652,2]
[354196269,1740343860119,-239.541183,0.0001652,2]
[354196270,1740343860129,-500.0,0.0001652,2]
[354196271,1740343860138,-239.541183,0.0001652,2]
[354196272,1740343860148,-500.0,0.0001652,2]
[354196273,1740343860158,-971.3,0.0001652,2]
[354196274,1740343860167,-824.77,0.0001652,2]
[354196275,1740343860177,-1942.43,0.0001652,2]
[354196276,1740343860186,-239.541183,0.0001652,2]
[354196277,1740343860196,-239.541183,0.0001652,2]
[354196278,1740343860205,-239.541183,0.0001652,2]
[354196279,1740343860215,-982.69,0.0001652,2]
[354196280,1740343860224,-1247.14,0.0001652,2]
[354196281,1740343860234,-727.67,0.0001652,2]
[354196282,1740343860243,-500.0,0.0001652,2]
[354196283,1740343860253,-500.0,0.0001652,2]
[354196284,1740343860262,-500.0,0.0001652,2]
[354196285,1740343860271,-1205.37,0.0001652,2]
[354196286,1740343860280,-500.0,0.0001652,2]
[354196287,1740343860289,-500.0,0.0001652,2]
[354196288,1740343860299,-2416.39,0.0001652,2]
[354196289,1740343860308,-864.58,0.0001652,2]
[354196290,1740343860317,-500.0,0.0001652,2]
[354196291,1740343860327,-714.82,0.0001652,2]
[354196292,1740343860336,-500.0,0.0001652,2]
[354196293,1740343860345,-547.66,0.0001652,2]
[354196294,1740343860355,-500.0,0.0001652,2]
[354196295,1740343860365,-1203.49,0.0001652,2]
[354196296,1740343860374,-1089.13,0.0001652,2]
[354196297,1740343860383,-1047.44,0.0001652,2]
[354196298,1740343860392,-500.0,0.0001652,2]
[354196299,1740343860402,-500.0,0.0001652,2]
[354196300,1740343860411,-1067.63,0.0001652,2]
[354196301,1740343860420,-514.36,0.0001652,2]
[354196302,1740343860429,-500.0,0.0001652,2]
[354196303,1740343860439,-1273.8,0.0001652,2]
[354196304,1740343860448,-2005.64,0.0001652,2]
[354196305,1740343860457,-500.0,0.0001652,2]
[354196306,1740343860467,-500.0,0.0001652,2]
[354196307,1740343860476,-500.0,0.0001652,2]
[354196308,1740343860485,-500.0,0.0001652,2]
[354196309,1740343860494,-1351.66,0.0001652,2]
[354196310,1740343860503,-1941.42,0.0001652,2]
[354196311,1740343860512,-500.0,0.0001652,2]
[354196312,1740343860521,-729.16,0.0001652,2]
[354196313,1740343860530,-151.0,0.0001652,2]
[354196314,1740343860539,-151.0,0.0001652,2]
[354196315,1740343860548,-1186.03,0.0001652,2]
[354196316,1740343860557,-500.0,0.0001652,2]
[354196317,1740343860567,-500.0,0.0001652,2]
[354196318,1740343860576,-283.103917,0.0001652,2]
[354196319,1740343860585,-790.02,0.0001652,2]
[354196320,1740343860594,-500.0,0.0001652,2]
[354196321,1740343860604,-1332.98,0.0001652,2]
[354196322,1740343860613,-500.0,0.0001652,2]
[354196323,1740343860622,-1349.95,0.0001652,2]
[354196324,1740343860631,-519.13,0.0001652,2]
[354196325,1740343860640,-500.0,0.0001652,2]
[354196326,1740343860649,-1686.06,0.0001652,2]
[354196327,1740343860659,-1384.56,0.0001652,2]
[354196328,1740343860669,-1781.34,0.0001652,2]
[354196329,1740343860678,-500.0,0.0001652,2]
[354196330,1740343860687,-500.0,0.0001652,2]
[354196331,1740343860696,-767.86,0.0001652,2]
[354196332,1740343860706,-500.0,0.0001652,2]
[354196333,1740343860715,-255.73053225,0.0001652,2]
[354196334,1740343860724,-500.0,0.0001652,2]
[354196335,1740343860733,-500.0,0.0001652,2]
[354196336,1740343860741,-845.97,0.0001652,2]
[354196337,1740343860750,-627.1,0.0001652,2]
[354196338,1740343860759,-777.91,0.0001652,2]
[354196339,1740343860768,-500.0,0.0001652,2]
[354196340,1740343860777,-500.0,0.0001652,2]
[354196341,1740343860786,-1339.61,0.0001652,2]
[354196342,1740343860795,-500.0,0.0001652,2]
[354196343,1740343860804,-500.0,0.0001652,2]
[354196344,1740343860813,-500.0,0.0001652,2]
[354196345,1740343860822,-500.0,0.0001652,2]
[354196346,1740343860831,-500.0,0.0001652,2]
[354196347,1740343860839,-500.0,0.0001652,2]
[354196348,1740343860848,-500.0,0.0001652,2]
[354196349,1740343860857,-500.0,0.0001652,2]
[354196350,1740343860867,-500.0,0.0001652,2]
[354196351,1740343860875,-500.0,0.0001652,2]
[354196352,1740343860884,-500.0,0.0001652,2]
[354196353,1740343860894,-1038.43,0.0001652,2]
[354196354,1740343860903,-500.0,0.0001652,2]
[354196355,1740343860912,-500.0,0.0001652,2]
[354196356,1740343860920,-500.0,0.0001652,2]
[354196357,1740343860929,-500.0,0.0001652,2]
[354196358,1740343860938,-1824.73,0.0001652,2]
[354196359,1740343860947,-500.0,0.0001652,2]
[354196360,1740343860956,-500.0,0.0001652,2]
[354196361,1740343860965,-500.0,0.0001652,2]
[354196362,1740343860974,-1912.12,0.0001652,2]
[354196363,1740343860983,-500.0,0.0001652,2]
[354196364,1740343860991,-500.0,0.0001652,2]
[354196365,1740343861000,-500.0,0.0001652,2]
[354196366,1740343861009,-500.0,0.0001652,2]
[354196367,1740343861018,-500.0,0.0001652,2]
[354196368,1740343861028,-500.0,0.0001652,2]
[354196369,1740343861037,-500.0,0.0001652,2]
[354196370,1740343861046,-500.0,0.0001652,2]
[354196371,1740343861055,-500.0,0.0001652,2]
[354196372,1740343861064,-500.0,0.0001652,2]
[354196373,1740343861072,-500.0,0.0001652,2]
[354196374,1740343861081,-500.0,0.0001652,2]
[354196375,1740343861090,-500.0,0.0001652,2]
[354196376,1740343861100,-1172.18,0.0001652,2]
[354196377,1740343861109,-500.0,0.0001652,2]
[354196378,1740343861118,-500.0,0.0001652,2]
[354196379,1740343861127,-500.0,0.0001652,2]
[354196380,1740343861135,-500.0,0.0001652,2]
[354196381,1740343861144,-834.41,0.0001652,2]
[354196382,1740343861153,-500.0,0.0001652,2]
[354196383,1740343861163,-500.0,0.0001652,2]
[354196384,1740343861172,-500.0,0.0001652,2]
[354196385,1740343861181,-500.0,0.0001652,2]
[354196386,1740343861190,-500.0,0.0001652,2]
[354196387,1740343861199,-742.86,0.0001652,2]
[354196388,1740343861207,-500.0,0.0001652,2]
[354196389,1740343861216,-500.0,0.0001652,2]
[354196390,1740343861226,-500.0,0.0001652,2]
[354196391,1740343861235,-526.0,0.0001652,2]
[354196392,1740343861245,-1721.24,0.0001652,2]
[354196393,1740343861416,-500.0,0.0001652,2]
[354196394,1740343861426,-500.26,0.0001652,2]
[354196395,1740343861435,-500.0,0.0001652,2]
[354196396,1740343861448,-500.0,0.0001652,2]
[354196397,1740343861457,-500.0,0.0001652,2]
[354196398,1740343861466,-2147.04,0.0001652,2]
[354196399,1740343861475,-500.0,0.0001652,2]
[354196400,1740343861484,-500.0,0.0001652,2]
[354196401,1740343861492,-500.0,0.0001652,2]
[354196402,1740343861501,-1689.06,0.0001652,2]
[354196403,1740343861510,-500.0,0.0001652,2]
[354196404,1740343861519,-500.0,0.0001652,2]
[354196405,1740343861528,-519.0,0.0001652,2]
[354196406,1740343861537,-872.07,0.0001652,2]
[354196407,1740343861546,-500.0,0.0001652,2]
[354196408,1740343861555,-500.0,0.0001652,2]
[354196409,1740343861563,-523.41,0.0001652,2]
[354196410,1740343861572,-1497.22,0.0001652,2]
[354196411,1740343861581,-944.74,0.0001652,2]
[354196412,1740343861591,-500.0,0.0001652,2]
[354196413,1740343861599,-500.0,0.0001652,2]
[354196414,1740343861608,-500.0,0.0001652,2]
[354196415,1740343861617,-4243.35,0.0001652,2]
[354196416,1740343861626,-989.34,0.0001652,2]
[354196417,1740343861635,-500.0,0.0001652,2]
[354196418,1740343861644,-500.0,0.0001652,2]
[354196419,1740343861653,-500.0,0.0001652,2]
[354196420,1740343861662,-500.0,0.0001652,2]
[354196421,1740343861671,-835.89,0.0001652,2]
[354196422,1740343861680,-1235.06,0.0001652,2]
[354196423,1740343861689,-1273.52,0.0001652,2]
[354196424,1740343861697,-500.0,0.0001652,2]
[354196425,1740343861707,-500.0,0.0001652,2]
[354196426,1740343861715,-776.79,0.0001652,2]
[354196427,1740343861724,-500.0,0.0001652,2]
[354196428,1740343861733,-500.0,0.0001652,2]
[354196429,1740343861743,-2630.34,0.0001652,2]
[354196430,1740343861752,-1843.86,0.0001652,2]
[354196431,1740343861762,-790.19,0.0001652,2]
[354196432,1740343861770,-500.0,0.0001652,2]
[354196433,1740343861780,-500.0,0.0001652,2]
[354196434,1740343861789,-500.0,0.0001652,2]
[354196435,1740343861798,-500.0,0.0001652,2]
[354196436,1740343861806,-500.0,0.0001652,2]
[354196437,1740343861815,-500.0,0.0001652,2]
[354196438,1740343861824,-2133.43,0.0001652,2]
[354196439,1740343861833,-1167.67,0.0001652,2]
[354196440,1740343861842,-500.0,0.0001652,2]
[354196441,1740343861851,-500.0,0.0001652,2]
[354196442,1740343861861,-1788.66,0.0001652,2]
[354196443,1740343861870,-500.0,0.0001652,2]
[354196444,1740343861879,-500.0,0.0001652,2]
[354196445,1740343861887,-634.15,0.0001652,2]
[354196446,1740343861896,-500.0,0.0001652,2]
[354196447,1740343861905,-918.44,0.0001652,2]
[354196448,1740343861914,-500.0,0.0001652,2]
[354196449,1740343861923,-500.0,0.0001652,2]
[354196450,1740343861932,-460.78487989,0.0001652,2]
[354196451,1740343861941,-522.23,0.0001652,2]
[354196452,1740343861950,-500.0,0.0001652,2]
[354196453,1740343861959,-852.84,0.0001652,2]
[354196454,1740343861968,-500.0,0.0001652,2]
[354196455,1740343861977,-500.0,0.0001652,2]
[354196456,1740343861986,-500.0,0.0001652,2]
[354196457,1740343861995,-535.36,0.0001652,2]
[354196458,1740343862004,-2210.66,0.0001652,2]
[354196459,1740343862013,-501.42284443,0.0001652,2]
[354196460,1740343862022,-971.98,0.0001652,2]
[354196461,1740343862032,-2735.08,0.0001652,2]
[354196462,1740343862041,-960.87,0.0001652,2]
[354196463,1740343862051,-865.7,0.0001652,2]
[354196464,1740343862060,-500.0,0.0001652,2]
[354196465,1740343862070,-783.82,0.0001652,2]
[354196466,1740343862079,-1055.18,0.0001652,2]
[354196467,1740343862089,-1211.94,0.0001652,2]
[354196468,1740343862098,-847.45,0.0001652,2]
[354196469,1740343862108,-370.89923407,0.0001652,2]
[354196470,1740343862118,-500.0,0.0001652,2]
[354196471,1740343862127,-502.22,0.0001652,2]
[354196472,1740343862136,-500.0,0.0001652,2]
[354196473,1740343862145,-500.0,0.0001652,2]
[354196474,1740343862154,-500.0,0.0001652,2]
[354196475,1740343862163,-500.0,0.0001652,2]
[354196476,1740343862172,-500.0,0.0001652,2]
[354196477,1740343862181,-500.0,0.0001652,2]
[354196478,1740343862190,-500.0,0.0001652,2]
[354196479,1740343862199,-282.061704,0.0001652,2]
[354196480,1740343862208,-500.0,0.0001652,2]
[354196481,1740343862218,-2240.0,0.0001652,2]
[354196482,1740343862227,-1289.35,0.0001652,2]
[354196483,1740343862236,-500.0,0.0001652,2]
[354196484,1740343862245,-595.82,0.0001652,2]
[354196485,1740343862254,-2354.58,0.0001652,2]
[354196486,1740343862263,-500.0,0.0001652,2]
[354196487,1740343862272,-587.87,0.0001652,2]
[354196488,1740343862281,-671.68,0.0001652,2]
[354196489,1740343862290,-500.0,0.0001652,2]
[354196490,1740343862299,-528.79,0.0001652,2]
[354196491,1740343862309,-500.0,0.0001652,2]
[354196492,1740343862318,-500.0,0.0001652,2]